[Event "44th Chess Olympiad Open 2022"]
[Site "Chennai"]
[Date "2022.08.06"]
[Round "8.58"]
[White "Abdelhakiem Abdellatief Nogda"]
[Black "Alrehaili, Ahmed Abdullah S"]
[Result "0-1"]
[WhiteElo "1960"]
[BlackElo "1986"]
[Annotator "NA RC"]
[PlyCount "80"]
[EventDate "2022.??.??"]
[TimeControl "60"]

1. e4 {[%emt 0:00:19]} d5 {[%emt 0:00:07]} 2. exd5 {[%emt 0:00:21]} Nf6 {
[%emt 0:00:04]} 3. Nf3 {[%emt 0:00:47]} Qxd5 {[%emt 0:00:06]} 4. Nc3 {[%emt 0:
00:00]} Qa5 {[%emt 0:00:11]} 5. d4 {[%emt 0:00:16]} Bf5 {[%emt 0:00:08]} 6. Bd3
{[%emt 0:01:57]} e6 {[%emt 0:10:01]} 7. O-O {[%emt 0:03:28]} c6 {[%emt 0:02:20]
} 8. Re1 {[%emt 0:01:54]} Bxd3 {[%emt 0:01:48]} 9. Qxd3 {[%emt 0:00:22]} Be7 {
[%emt 0:00:05]} 10. Bf4 {[%emt 0:01:35]} Nbd7 {[%emt 0:01:32]} 11. Rad1 {
[%emt 0:01:45]} O-O {[%emt 0:01:12]} 12. Ne5 {[%emt 0:02:42]} Rad8 {[%emt 0:00:
00]} 13. Qf3 {[%emt 0:04:09]} Nxe5 {[%emt 0:15:16]} 14. dxe5 {[%emt 0:09:21]}
Rxd1 {[%emt 0:01:03]} 15. Rxd1 {[%emt 0:00:28]} Nd5 {[%emt 0:00:03]} 16. Nxd5 {
[%emt 0:04:57]} cxd5 {[%emt 0:00:18]} 17. Qb3 {[%emt 0:06:50]} b5 {[%emt 0:00:
00]} 18. a3 {[%emt 0:03:15]} Rc8 {[%emt 0:01:55]} 19. Qd3 {[%emt 0:05:40]} Qa4
{[%emt 0:02:38]} 20. g3 {[%emt 0:12:49]} Qxc2 {[%emt 0:02:36]} 21. Qxc2 {
[%emt 0:02:31]} Rxc2 {[%emt 0:00:02]} 22. Rc1 {[%emt 0:01:42]} Rxc1+ {[%emt 0:
00:00]} 23. Bxc1 {[%emt 0:00:02]} Bc5 {[%emt 0:00:31]} 24. Kf1 {[%emt 0:00:24]}
Bd4 {[%emt 0:00:05]} 25. f4 {[%emt 0:00:34]} f6 {[%emt 0:00:01]} 26. exf6 {
[%emt 0:00:18]} gxf6 {[%emt 0:00:03]} 27. Ke2 {[%emt 0:00:11]} Kf7 {[%emt 0:00:
00]} 28. Kd3 {[%emt 0:01:22]} e5 {[%emt 0:00:02]} 29. g4 {[%emt 0:01:03]} Bc5 {
[%emt 0:01:06]} 30. fxe5 {[%emt 0:06:44]} fxe5 {[%emt 0:00:04]} 31. b4 {
[%emt 0:01:46]} e4+ {[%emt 0:00:22]} 32. Ke2 {[%emt 0:00:34]} Bb6 {[%emt 0:00:
00]} 33. Bf4 {[%emt 0:00:35]} Ke6 {[%emt 0:00:57]} 34. h4 {[%emt 0:00:36]} d4 {
[%emt 0:00:15]} 35. h5 {[%emt 0:01:26]} a5 {[%emt 0:03:55]} 36. Kd2 {[%emt 0:
00:00]} axb4 {[%emt 0:04:28]} 37. axb4 {[%emt 0:00:05]} Bd8 {[%emt 0:00:41]}
38. Kc2 {[%emt 0:01:55]} Be7 {[%emt 0:00:40]} 39. Kb3 {[%emt 0:04:17]} e3 {
[%emt 0:02:15]} 40. h6 {[%emt 0:04:27]} Bh4 {[%emt 0:02:05]} 0-1

[Event "44th Chess Olympiad Open 2022"]
[Site "Chennai"]
[Date "2022.08.06"]
[Round "8.58"]
[White "Alharthi, Ahmed Mohammed A"]
[Black "Hamid Mohammed"]
[Result "1/2-1/2"]
[WhiteElo "1935"]
[BlackElo "2116"]
[Annotator "NA RC"]
[PlyCount "85"]
[EventDate "2022.??.??"]
[TimeControl "60"]

1. d4 {[%emt 0:00:04]} Nf6 {[%emt 0:00:07]} 2. Bf4 {[%emt 0:00:10]} b6 {
[%emt 0:00:14]} 3. e3 {[%emt 0:00:22]} Bb7 {[%emt 0:00:06]} 4. Nf3 {[%emt 0:00:
00]} d6 {[%emt 0:00:07]} 5. Bd3 {[%emt 0:02:17]} Nbd7 {[%emt 0:01:54]} 6. O-O {
[%emt 0:01:13]} Nh5 {[%emt 0:05:49]} 7. Bg5 {[%emt 0:03:07]} h6 {[%emt 0:00:27]
} 8. Bh4 {[%emt 0:00:09]} g5 {[%emt 0:00:10]} 9. Bg3 {[%emt 0:00:08]} Nxg3 {
[%emt 0:00:09]} 10. hxg3 {[%emt 0:00:23]} Bg7 {[%emt 0:00:08]} 11. c3 {[%emt 0:
00:00]} e5 {[%emt 0:03:03]} 12. Bf5 {[%emt 0:08:28]} e4 {[%emt 0:04:47]} 13.
Nfd2 {[%emt 0:04:21]} Qe7 {[%emt 0:02:02]} 14. Qa4 {[%emt 0:01:52]} a6 {
[%emt 0:31:52]} 15. c4 {[%emt 0:02:04]} Kd8 {[%emt 0:03:53]} 16. Nc3 {[%emt 0:
00:00]} Nf6 {[%emt 0:00:48]} 17. c5 {[%emt 0:10:24]} d5 {[%emt 0:09:27]} 18.
cxb6 {[%emt 0:12:32]} cxb6 {[%emt 0:00:17]} 19. Qa3 {[%emt 0:00:07]} Qxa3 {
[%emt 0:00:44]} 20. bxa3 {[%emt 0:00:10]} Bf8 {[%emt 0:07:51]} 21. a4 {[%emt 0:
00:00]} Bb4 {[%emt 0:01:06]} 22. Rac1 {[%emt 0:01:51]} Bc8 {[%emt 0:02:55]} 23.
Bxc8 {[%emt 0:00:31]} Rxc8 {[%emt 0:00:07]} 24. Ncb1 {[%emt 0:01:24]} Kd7 {
[%emt 0:00:53]} 25. Nb3 {[%emt 0:01:25]} Rc4 {[%emt 0:06:57]} 26. a3 {[%emt 0:
00:00]} Bd6 {[%emt 0:01:06]} 27. Rxc4 {[%emt 0:02:51]} dxc4 {[%emt 0:00:09]}
28. N3d2 {[%emt 0:00:10]} Rc8 {[%emt 0:00:42]} 29. Rc1 {[%emt 0:01:04]} b5 {
[%emt 0:01:23]} 30. axb5 {[%emt 0:03:24]} axb5 {[%emt 0:00:08]} 31. a4 {
[%emt 0:00:07]} bxa4 {[%emt 0:01:12]} 32. Nxc4 {[%emt 0:02:22]} Ke7 {[%emt 0:
00:00]} 33. Nbd2 {[%emt 0:02:42]} Bb4 {[%emt 0:05:07]} 34. Ra1 {[%emt 0:00:12]}
a3 {[%emt 0:00:40]} 35. Nb6 {[%emt 0:02:25]} Rc2 {[%emt 0:00:42]} 36. Nxe4 {
[%emt 0:02:36]} Nxe4 {[%emt 0:04:49]} 37. Nd5+ {[%emt 0:00:06]} Kd6 {[%emt 0:
00:00]} 38. Nxb4 {[%emt 0:01:52]} Rb2 {[%emt 0:00:33]} 39. Nd3 {[%emt 0:02:41]}
Rb3 {[%emt 0:00:17]} 40. Nc1 {[%emt 0:04:32]} Rc3 {[%emt 0:00:21]} 41. Na2 {
[%emt 0:30:26]} Rb3 {[%emt 0:31:04]} 42. Nc1 {[%emt 0:00:12]} Rc3 {[%emt 0:00:
00]} 43. Na2 {[%emt 0:00:00]} 1/2-1/2

[Event "44th Chess Olympiad Open 2022"]
[Site "Chennai"]
[Date "2022.08.06"]
[Round "8.59"]
[White "Michaelides, Konstantinos"]
[Black "Mirzaad, S.wahabuddin"]
[Result "1/2-1/2"]
[WhiteElo "2300"]
[BlackElo "1999"]
[Annotator "RC"]
[PlyCount "232"]
[EventDate "2022.??.??"]
[TimeControl "60"]

1. d4 {[%emt 0:00:09]} d5 {[%emt 0:00:19]} 2. c4 {[%emt 0:00:17]} c6 {[%emt 0:
00:00]} 3. cxd5 {[%emt 0:00:16]} cxd5 {[%emt 0:00:07]} 4. Bf4 {[%emt 0:00:05]}
Nc6 {[%emt 0:00:36]} 5. e3 {[%emt 0:00:17]} Nf6 {[%emt 0:01:16]} 6. Nc3 {
[%emt 0:00:14]} a6 {[%emt 0:00:32]} 7. Be2 {[%emt 0:01:28]} Bf5 {[%emt 0:03:41]
} 8. Nf3 {[%emt 0:00:42]} e6 {[%emt 0:00:29]} 9. Qb3 {[%emt 0:00:06]} Bb4 {
[%emt 0:12:18]} 10. O-O {[%emt 0:03:06]} O-O {[%emt 0:00:21]} 11. a3 {[%emt 0:
00:00]} Bd6 {[%emt 0:02:46]} 12. Bxd6 {[%emt 0:02:32]} Qxd6 {[%emt 0:00:50]}
13. Na4 {[%emt 0:01:02]} Nd7 {[%emt 0:11:13]} 14. Rfc1 {[%emt 0:08:08]} b5 {
[%emt 0:07:05]} 15. Nc5 {[%emt 0:01:38]} Rfb8 {[%emt 0:09:38]} 16. Bd3 {
[%emt 0:10:44]} Bxd3 {[%emt 0:05:31]} 17. Qxd3 {[%emt 0:01:49]} Rc8 {[%emt 0:
00:00]} 18. a4 {[%emt 0:12:52]} bxa4 {[%emt 0:03:59]} 19. Rxa4 {[%emt 0:06:44]}
a5 {[%emt 0:00:57]} 20. Nxd7 {[%emt 0:08:23]} Qxd7 {[%emt 0:00:10]} 21. Qd1 {
[%emt 0:08:20]} Rab8 {[%emt 0:05:07]} 22. b3 {[%emt 0:02:49]} h6 {[%emt 0:00:
00]} 23. g3 {[%emt 0:00:51]} Rb6 {[%emt 0:00:44]} 24. Ne1 {[%emt 0:02:30]} Rcb8
{[%emt 0:03:47]} 25. Nd3 {[%emt 0:01:02]} Qd6 {[%emt 0:04:18]} 26. Nc5 {
[%emt 0:01:29]} Rb5 {[%emt 0:01:46]} 27. Rc3 {[%emt 0:05:41]} e5 {[%emt 0:00:
00]} 28. Qg4 {[%emt 0:02:26]} exd4 {[%emt 0:01:55]} 29. exd4 {[%emt 0:00:14]}
Re8 {[%emt 0:04:06]} 30. Re3 {[%emt 0:03:03]} Rbb8 {[%emt 0:02:25]} 31. Ra2 {
[%emt 0:07:20]} Qg6 {[%emt 0:04:14]} 32. Qxg6 {[%emt 0:00:00]} fxg6 {[%emt 0:
00:00]} 33. Rae2 {[%emt 0:00:00]} Red8 {[%emt 0:00:24]} 34. Rd3 {[%emt 0:00:00]
} Rb4 {[%emt 0:00:48]} 35. Re6 {[%emt 0:00:00]} Nxd4 {[%emt 0:00:31]} 36. Rxg6
{[%emt 0:00:10]} Rb5 {[%emt 0:02:28]} 37. Na6 {[%emt 0:01:02]} Nxb3 {[%emt 0:
00:00]} 38. Nc7 {[%emt 0:00:15]} Rb7 {[%emt 0:00:50]} 39. Nxd5 {[%emt 0:00:21]}
Rf8 {[%emt 0:00:52]} 40. Nf4 {[%emt 0:00:49]} a4 {[%emt 0:00:34]} 41. Rdd6 {
[%emt 0:08:44]} Ra8 {[%emt 0:02:10]} 42. Nd5 {[%emt 0:10:13]} a3 {[%emt 0:00:
00]} 43. Nc3 {[%emt 0:03:01]} a2 {[%emt 0:00:34]} 44. Nxa2 {[%emt 0:00:24]}
Rxa2 {[%emt 0:00:06]} 45. Rb6 {[%emt 0:01:10]} Rxb6 {[%emt 0:00:33]} 46. Rxb6 {
[%emt 0:00:02]} Nd2 {[%emt 0:01:28]} 47. Rb4 {[%emt 0:00:38]} Nf3+ {[%emt 0:00:
00]} 48. Kf1 {[%emt 0:01:17]} Ne5 {[%emt 0:02:13]} 49. Rb8+ {[%emt 0:05:08]}
Kh7 {[%emt 0:01:15]} 50. Kg2 {[%emt 0:01:30]} g5 {[%emt 0:02:08]} 51. h3 {
[%emt 0:01:31]} Kg7 {[%emt 0:02:53]} 52. Rb7+ {[%emt 0:00:26]} Nf7 {[%emt 0:00:
00]} 53. Rb6 {[%emt 0:00:38]} Rd2 {[%emt 0:00:19]} 54. Ra6 {[%emt 0:00:53]} Rd6
{[%emt 0:00:15]} 55. Ra7 {[%emt 0:00:23]} Kg6 {[%emt 0:00:26]} 56. Ra5 {
[%emt 0:00:44]} Kf6 {[%emt 0:01:10]} 57. Ra2 {[%emt 0:00:49]} Ne5 {[%emt 0:00:
00]} 58. Rb2 {[%emt 0:00:45]} h5 {[%emt 0:00:31]} 59. Rb4 {[%emt 0:00:52]} Rd2
{[%emt 0:02:43]} 60. Rb6+ {[%emt 0:00:29]} Kf5 {[%emt 0:00:48]} 61. Rb8 {
[%emt 0:00:20]} Rd7 {[%emt 0:03:45]} 62. Rb4 {[%emt 0:00:33]} g4 {[%emt 0:00:
00]} 63. Rf4+ {[%emt 0:00:47]} Ke6 {[%emt 0:00:32]} 64. hxg4 {[%emt 0:00:16]}
hxg4 {[%emt 0:00:11]} 65. Ra4 {[%emt 0:00:27]} Kf5 {[%emt 0:00:38]} 66. Rf4+ {
[%emt 0:00:29]} Kg5 {[%emt 0:00:08]} 67. Ra4 {[%emt 0:00:33]} Rd1 {[%emt 0:00:
00]} 68. Ra5 {[%emt 0:00:15]} Kf5 {[%emt 0:00:19]} 69. Ra4 {[%emt 0:00:49]} Rc1
{[%emt 0:02:50]} 70. Rf4+ {[%emt 0:00:37]} Ke6 {[%emt 0:00:19]} 71. Ra4 {
[%emt 0:00:39]} Kd5 {[%emt 0:00:20]} 72. Ra5+ {[%emt 0:00:18]} Ke4 {[%emt 0:00:
00]} 73. Ra4+ {[%emt 0:00:27]} Rc4 {[%emt 0:00:12]} 74. Ra3 {[%emt 0:00:20]}
Nd3 {[%emt 0:00:30]} 75. Ra8 {[%emt 0:00:47]} Ne5 {[%emt 0:03:14]} 76. Ra3 {
[%emt 0:00:20]} Rb4 {[%emt 0:00:14]} 77. Ra5 {[%emt 0:00:44]} Nf3 {[%emt 0:00:
00]} 78. Ra8 {[%emt 0:00:25]} Kd3 {[%emt 0:02:21]} 79. Ra3+ {[%emt 0:00:23]}
Ke2 {[%emt 0:00:21]} 80. Re3+ {[%emt 0:00:48]} Kd2 {[%emt 0:00:07]} 81. Re8 {
[%emt 0:00:43]} Rd4 {[%emt 0:00:43]} 82. Ra8 {[%emt 0:00:23]} Re4 {[%emt 0:00:
00]} 83. Ra2+ {[%emt 0:00:12]} Ke1 {[%emt 0:00:10]} 84. Ra1+ {[%emt 0:00:21]}
Ke2 {[%emt 0:00:07]} 85. Ra2+ {[%emt 0:00:07]} Nd2 {[%emt 0:00:06]} 86. Ra8 {
[%emt 0:00:30]} Nf3 {[%emt 0:03:08]} 87. Ra2+ {[%emt 0:00:12]} Kd1 {[%emt 0:00:
00]} 88. Ra1+ {[%emt 0:00:10]} Kc2 {[%emt 0:00:07]} 89. Ra2+ {[%emt 0:00:04]}
Kb3 {[%emt 0:00:20]} 90. Ra8 {[%emt 0:00:14]} Rc4 {[%emt 0:00:21]} 91. Rb8+ {
[%emt 0:00:53]} Kc3 {[%emt 0:00:10]} 92. Rd8 {[%emt 0:00:40]} Ne1+ {[%emt 0:00:
00]} 93. Kf1 {[%emt 0:00:45]} Nd3 {[%emt 0:00:06]} 94. Kg2 {[%emt 0:01:42]} Re4
{[%emt 0:01:16]} 95. Rc8+ {[%emt 0:00:16]} Kd2 {[%emt 0:00:34]} 96. Ra8 {
[%emt 0:00:33]} Ne5 {[%emt 0:01:43]} 97. Ra2+ {[%emt 0:00:16]} Kd3 {[%emt 0:00:
00]} 98. Ra3+ {[%emt 0:00:11]} Kd4 {[%emt 0:00:12]} 99. Ra4+ {[%emt 0:00:21]}
Kd5 {[%emt 0:00:08]} 100. Ra5+ {[%emt 0:00:04]} Ke6 {[%emt 0:00:06]} 101. Ra6+
{[%emt 0:00:08]} Kf5 {[%emt 0:00:07]} 102. Ra5 {[%emt 0:00:32]} Re2 {[%emt 0:
00:00]} 103. Kf1 {[%emt 0:00:50]} Rc2 {[%emt 0:00:20]} 104. Kg2 {[%emt 0:00:54]
} Rc8 {[%emt 0:00:46]} 105. Rb5 {[%emt 0:00:51]} Rh8 {[%emt 0:00:18]} 106. Ra5
{[%emt 0:00:24]} Rf8 {[%emt 0:00:46]} 107. Rb5 {[%emt 0:00:42]} Rd8 {[%emt 0:
00:00]} 108. Ra5 {[%emt 0:00:23]} Rd4 {[%emt 0:00:14]} 109. Ra3 {[%emt 0:00:39]
} Rc4 {[%emt 0:00:16]} 110. Ra8 {[%emt 0:00:21]} Ke4 {[%emt 0:00:33]} 111. Re8
{[%emt 0:01:08]} Rc3 {[%emt 0:00:37]} 112. Rg8 {[%emt 0:00:14]} Kf5 {[%emt 0:
00:00]} 113. Rf8+ {[%emt 0:00:16]} Kg6 {[%emt 0:00:36]} 114. Ra8 {[%emt 0:00:
00]} Nf7 {[%emt 0:00:47]} 115. Ra6+ {[%emt 0:00:06]} Kh5 {[%emt 0:00:15]} 116.
Ra5+ {[%emt 0:00:22]} Ng5 {[%emt 0:00:04]} 1/2-1/2

[Event "44th Chess Olympiad Open 2022"]
[Site "Chennai"]
[Date "2022.08.06"]
[Round "8.59"]
[White "Amini, Habibullah"]
[Black "Isaakidis, Alexandros"]
[Result "1/2-1/2"]
[WhiteElo "2035"]
[BlackElo "2165"]
[Annotator "RC"]
[PlyCount "118"]
[EventDate "2022.??.??"]
[TimeControl "60"]

1. d4 {[%emt 0:00:03]} Nf6 {[%emt 0:00:21]} 2. Bf4 {[%emt 0:00:07]} g6 {
[%emt 0:00:09]} 3. Nc3 {[%emt 0:00:20]} d6 {[%emt 0:00:48]} 4. e4 {[%emt 0:00:
00]} Bg7 {[%emt 0:01:04]} 5. Qd2 {[%emt 0:00:42]} c6 {[%emt 0:01:50]} 6. Nf3 {
[%emt 0:05:15]} Bg4 {[%emt 0:13:23]} 7. Be2 {[%emt 0:03:52]} d5 {[%emt 0:10:09]
} 8. e5 {[%emt 0:04:32]} Ne4 {[%emt 0:00:27]} 9. Nxe4 {[%emt 0:00:11]} dxe4 {
[%emt 0:00:06]} 10. Ng1 {[%emt 0:00:07]} Be6 {[%emt 0:08:57]} 11. h4 {[%emt 0:
00:00]} c5 {[%emt 0:02:35]} 12. Bb5+ {[%emt 0:10:05]} Nc6 {[%emt 0:06:10]} 13.
Ne2 {[%emt 0:12:59]} Qb6 {[%emt 0:12:22]} 14. Bxc6+ {[%emt 0:04:14]} Qxc6 {
[%emt 0:07:35]} 15. h5 {[%emt 0:02:19]} Rd8 {[%emt 0:07:12]} 16. c3 {[%emt 0:
00:00]} Bc4 {[%emt 0:09:18]} 17. h6 {[%emt 0:03:31]} Bf8 {[%emt 0:00:01]} 18.
O-O {[%emt 0:00:50]} g5 {[%emt 0:01:20]} 19. Bxg5 {[%emt 0:01:29]} Rg8 {
[%emt 0:02:43]} 20. Be3 {[%emt 0:02:06]} Bxh6 {[%emt 0:02:18]} 21. g3 {[%emt 0:
00:00]} Rg6 {[%emt 0:04:54]} 22. Rfe1 {[%emt 0:03:28]} Bd3 {[%emt 0:01:41]} 23.
Kg2 {[%emt 0:05:35]} f6 {[%emt 0:03:56]} 24. e6 {[%emt 0:00:50]} f5 {[%emt 0:
00:00]} 25. Kg1 {[%emt 0:02:55]} Rxe6 {[%emt 0:01:05]} 26. Nf4 {[%emt 0:02:28]}
Bxf4 {[%emt 0:01:19]} 27. Bxf4 {[%emt 0:00:02]} cxd4 {[%emt 0:00:48]} 28. cxd4
{[%emt 0:00:02]} Rxd4 {[%emt 0:00:40]} 29. Rac1 {[%emt 0:00:02]} Rc4 {[%emt 0:
00:00]} 30. b3 {[%emt 0:00:17]} Rc2 {[%emt 0:00:16]} 31. Rxc2 {[%emt 0:01:51]}
Qxc2 {[%emt 0:00:14]} 32. Qa5 {[%emt 0:00:08]} Ra6 {[%emt 0:00:57]} 33. Qe5 {
[%emt 0:04:20]} Rc6 {[%emt 0:01:34]} 34. Bg5 {[%emt 0:00:52]} Qc5 {[%emt 0:00:
00]} 35. Qh8+ {[%emt 0:00:43]} Kd7 {[%emt 0:00:00]} 36. Qxh7 {[%emt 0:01:02]}
Qe5 {[%emt 0:00:02]} 37. Bf4 {[%emt 0:03:30]} Qf6 {[%emt 0:00:52]} 38. Qg8 {
[%emt 0:00:45]} Rb6 {[%emt 0:01:00]} 39. Qd5+ {[%emt 0:01:11]} Ke8 {[%emt 0:00:
00]} 40. Kg2 {[%emt 0:01:43]} Qe6 {[%emt 0:00:28]} 41. Qd4 {[%emt 0:30:08]} Qf6
{[%emt 0:01:38]} 42. Qd5 {[%emt 0:00:00]} Qc6 {[%emt 0:24:03]} 43. Qg8+ {
[%emt 0:00:00]} Kd7 {[%emt 0:00:02]} 44. Rc1 {[%emt 0:00:00]} Bc2 {[%emt 0:00:
00]} 45. Rxc2 {[%emt 0:00:40]} Qxc2 {[%emt 0:00:39]} 46. Qd5+ {[%emt 0:00:04]}
Ke8 {[%emt 0:05:22]} 47. Qg8+ {[%emt 0:00:02]} Kd7 {[%emt 0:00:07]} 48. Qd5+ {
[%emt 0:00:04]} Rd6 {[%emt 0:01:56]} 49. Qxf5+ {[%emt 0:00:09]} Re6 {[%emt 0:
00:00]} 50. Qd5+ {[%emt 0:00:11]} Rd6 {[%emt 0:00:02]} 51. Qxb7+ {[%emt 0:00:
00]} Ke6 {[%emt 0:00:07]} 52. Bxd6 {[%emt 0:00:49]} exd6 {[%emt 0:00:01]} 53.
Qxa7 {[%emt 0:00:15]} d5 {[%emt 0:00:07]} 54. Qd4 {[%emt 0:00:41]} Qxa2 {
[%emt 0:00:41]} 55. b4 {[%emt 0:00:01]} Qb3 {[%emt 0:00:33]} 56. Qb6+ {[%emt 0:
00:00]} Kf5 {[%emt 0:00:49]} 57. Qd4 {[%emt 0:00:46]} Qf3+ {[%emt 0:00:41]} 58.
Kg1 {[%emt 0:00:07]} Qb3 {[%emt 0:00:03]} 59. Kg2 {[%emt 0:00:30]} Qf3+ {
[%emt 0:00:09]} 1/2-1/2

[Event "44th Chess Olympiad Open 2022"]
[Site "Chennai"]
[Date "2022.08.06"]
[Round "8.59"]
[White "Florentiades, Michalis"]
[Black "Sakhawaty, Sepehr"]
[Result "1/2-1/2"]
[WhiteElo "1974"]
[BlackElo "1809"]
[Annotator "NA RC"]
[PlyCount "115"]
[EventDate "2022.??.??"]
[TimeControl "60"]

1. e4 {[%emt 0:00:06]} c5 {[%emt 0:00:05]} 2. Nf3 {[%emt 0:00:08]} d6 {[%emt 0:
00:00]} 3. Bb5+ {[%emt 0:00:09]} Nd7 {[%emt 0:00:59]} 4. c3 {[%emt 0:00:29]} a6
{[%emt 0:00:04]} 5. Ba4 {[%emt 0:00:16]} Ngf6 {[%emt 0:02:19]} 6. Qe2 {[%emt 0:
00:00]} b5 {[%emt 0:04:48]} 7. Bc2 {[%emt 0:00:19]} Bb7 {[%emt 0:01:19]} 8. O-O
{[%emt 0:03:41]} g6 {[%emt 0:03:31]} 9. d4 {[%emt 0:02:37]} e5 {[%emt 0:04:16]}
10. Rd1 {[%emt 0:02:55]} Qc7 {[%emt 0:02:17]} 11. d5 {[%emt 0:02:39]} c4 {
[%emt 0:06:08]} 12. b3 {[%emt 0:07:20]} cxb3 {[%emt 0:00:33]} 13. axb3 {
[%emt 0:00:30]} Bg7 {[%emt 0:00:56]} 14. Nfd2 {[%emt 0:06:02]} O-O {[%emt 0:00:
00]} 15. Nf1 {[%emt 0:08:17]} Nb6 {[%emt 0:03:49]} 16. Bd2 {[%emt 0:04:12]}
Nfd7 {[%emt 0:04:06]} 17. Na3 {[%emt 0:05:31]} f5 {[%emt 0:08:17]} 18. f3 {
[%emt 0:05:59]} fxe4 {[%emt 0:04:44]} 19. fxe4 {[%emt 0:00:40]} Rf7 {[%emt 0:
00:00]} 20. c4 {[%emt 0:06:12]} bxc4 {[%emt 0:06:52]} 21. Nxc4 {[%emt 0:00:28]}
Nxc4 {[%emt 0:01:10]} 22. Qxc4 {[%emt 0:01:41]} Qb6+ {[%emt 0:01:53]} 23. Kh1 {
[%emt 0:04:19]} Rc8 {[%emt 0:01:25]} 24. Qd3 {[%emt 0:00:57]} Nf6 {[%emt 0:00:
00]} 25. Ne3 {[%emt 0:02:18]} Rcf8 {[%emt 0:09:08]} 26. Rf1 {[%emt 0:03:25]}
Nh5 {[%emt 0:01:28]} 27. Rxf7 {[%emt 0:02:26]} Rxf7 {[%emt 0:00:01]} 28. Nc4 {
[%emt 0:00:33]} Qd8 {[%emt 0:04:17]} 29. Rf1 {[%emt 0:02:28]} Nf4 {[%emt 0:00:
00]} 30. Bxf4 {[%emt 0:08:25]} exf4 {[%emt 0:00:06]} 31. Qd2 {[%emt 0:00:42]}
Bc8 {[%emt 0:02:06]} 32. Qb4 {[%emt 0:02:31]} Bf8 {[%emt 0:03:25]} 33. Qb6 {
[%emt 0:02:52]} Qg5 {[%emt 0:03:11]} 34. Bd1 {[%emt 0:02:28]} Qe7 {[%emt 0:00:
00]} 35. Bf3 {[%emt 0:01:18]} g5 {[%emt 0:00:53]} 36. h3 {[%emt 0:02:49]} Rg7 {
[%emt 0:03:56]} 37. Qb8 {[%emt 0:03:28]} Bd7 {[%emt 0:01:03]} 38. e5 {[%emt 0:
00:00]} dxe5 {[%emt 0:01:19]} 39. Nxe5 {[%emt 0:02:13]} Bb5 {[%emt 0:00:41]}
40. Rc1 {[%emt 0:01:08]} Qa7 {[%emt 0:01:06]} 41. Qxa7 {[%emt 0:06:16]} Rxa7 {
[%emt 0:00:01]} 42. Rc8 {[%emt 0:01:47]} Kg7 {[%emt 0:02:41]} 43. Nc6 {[%emt 0:
00:00]} Bxc6 {[%emt 0:06:56]} 44. dxc6 {[%emt 0:00:21]} Bd6 {[%emt 0:00:21]}
45. Rd8 {[%emt 0:01:37]} Be7 {[%emt 0:05:41]} 46. Rd7 {[%emt 0:03:50]} Rxd7 {
[%emt 0:00:20]} 47. cxd7 {[%emt 0:00:04]} a5 {[%emt 0:00:08]} 48. Bc6 {[%emt 0:
00:00]} Kf6 {[%emt 0:01:12]} 49. Kg1 {[%emt 0:00:07]} Ke5 {[%emt 0:00:36]} 50.
Kf2 {[%emt 0:00:34]} Kd6 {[%emt 0:00:21]} 51. Ba4 {[%emt 0:00:05]} h5 {[%emt 0:
00:00]} 52. Kf3 {[%emt 0:00:09]} Ke5 {[%emt 0:00:43]} 53. Bc6 {[%emt 0:00:28]}
Kd4 {[%emt 0:01:08]} 54. Ba4 {[%emt 0:02:00]} Bd8 {[%emt 0:01:39]} 55. Bc6 {
[%emt 0:00:17]} Kc5 {[%emt 0:01:10]} 56. Ba4 {[%emt 0:00:12]} Kd4 {[%emt 0:00:
00]} 57. Bc6 {[%emt 0:00:08]} Kc5 {[%emt 0:00:04]} 58. Ke4 {[%emt 0:00:08]}
1/2-1/2

[Event "44th Chess Olympiad Open 2022"]
[Site "Chennai"]
[Date "2022.08.06"]
[Round "8.59"]
[White "Sulaiman, Ahmad Ashrafi"]
[Black "Antoniou, Rafail"]
[Result "1-0"]
[WhiteElo "1953"]
[BlackElo "1817"]
[Annotator "NA RC"]
[PlyCount "55"]
[EventDate "2022.??.??"]
[TimeControl "60"]

1. d4 {[%emt 0:00:06]} Nf6 {[%emt 0:00:21]} 2. Bf4 {[%emt 0:00:11]} d5 {
[%emt 0:00:10]} 3. e3 {[%emt 0:00:18]} c5 {[%emt 0:00:32]} 4. c3 {[%emt 0:00:
00]} e6 {[%emt 0:00:58]} 5. Nf3 {[%emt 0:00:34]} Bd6 {[%emt 0:00:47]} 6. Bg3 {
[%emt 0:00:37]} Qc7 {[%emt 0:00:54]} 7. Ne5 {[%emt 0:00:28]} Nbd7 {[%emt 0:00:
00]} 8. f4 {[%emt 0:00:36]} b5 {[%emt 0:04:28]} 9. Nd2 {[%emt 0:02:10]} Rb8 {
[%emt 0:01:28]} 10. Bd3 {[%emt 0:03:30]} a5 {[%emt 0:04:37]} 11. O-O {[%emt 0:
00:00]} Ba6 {[%emt 0:02:53]} 12. Bf2 {[%emt 0:04:51]} c4 {[%emt 0:14:51]} 13.
Bc2 {[%emt 0:03:11]} b4 {[%emt 0:14:11]} 14. g4 {[%emt 0:02:38]} bxc3 {[%emt 0:
00:00]} 15. bxc3 {[%emt 0:00:13]} Rb2 {[%emt 0:05:18]} 16. g5 {[%emt 0:00:43]}
Bxe5 {[%emt 0:01:12]} 17. fxe5 {[%emt 0:00:35]} Ng4 {[%emt 0:00:30]} 18. Rc1 {
[%emt 0:12:36]} Nxf2 {[%emt 0:08:19]} 19. Rxf2 {[%emt 0:00:11]} Qd8 {[%emt 0:
00:00]} 20. Qh5 {[%emt 0:02:28]} g6 {[%emt 0:01:21]} 21. Qh6 {[%emt 0:01:26]}
Qe7 {[%emt 0:02:16]} 22. Bb1 {[%emt 0:01:53]} Qf8 {[%emt 0:01:02]} 23. Qh4 {
[%emt 0:01:23]} Qg7 {[%emt 0:01:56]} 24. Ne4 {[%emt 0:01:57]} Rxf2 {[%emt 0:00:
00]} 25. Nd6+ {[%emt 0:00:15]} Ke7 {[%emt 0:00:23]} 26. Qxf2 {[%emt 0:00:23]}
Nxe5 {[%emt 0:00:03]} 27. dxe5 {[%emt 0:01:24]} Qxe5 {[%emt 0:01:09]} 28. Nxf7
{[%emt 0:00:13]} 1-0